Workbook

Sheet Lyo-cycle
C2: rate °C min−1 | D2: start T °C | E2: end T °C | F2: min
B3: Ramp period calculator | C3: 0.5 | D3: 0 | E3: 40 | F3: =ABS((E3-D3)/C3) -> 80
B5: Step | C5: Temperature (°C) | D5: Ramp (°C/min) | E5: Time (min) | F5: Cumulative Time (h) | G5: Ramp (mbar/min) | H5: Set pressure (mbar)
B6: Equilibrium phase | C6: 20 | E6: 0 | F6: =0/60 -> 0 | H6: 1000
A7: A | B7: Freezing ramp | C7: -50 | D7: =(C7-C6)/E7 -> -0.5 | E7: 140 | F7: =E7/60+F6 -> 2.333333333 | H7: 1000 | L7: period labels | AA7: Vertical lines
A8: B | B8: Freezing hold | C8: -50 | E8: 120 | F8: =E8/60+F7 -> 4.333333333 | H8: 1000 | Q8: period label | V8: time period label | AF8: period vertical line
A9: C | B9: Re-heating ramp | C9: -10 | D9: =(C9-C8)/E9 -> 0.5 | E9: 80 | F9: 5.666666667 | H9: 1000 | L9: periods | O9: label (min) | Q9: data point | R9: series label | AA9: periods | AD9: label (min)
A10: D | B10: Annealing hold | C10: -10 | E10: 180 | F10: 8.666666667 | H10: 1000 | K10: =A7 -> A | L10: =IF(ISBLANK(B7)," ",B7) -> Freezing ramp | M10: 0 | N10: =$C$30 -> 40 | O10: =IF(ISBLANK(E7)," ",E7) -> 140 | Q10: =(M11-M10)/2 -> 1.166666667 | R10: =$Q$8&": "&L10 -> period label: Freezing ramp | U10: =Q10 -> 1.166666667 | V10: =$V$8&": "& O10 -> time period label: 140 | X10: =TEXT(H13*1000,"000") & " microbar" -> 400 microbar | Y10: m | Z10: =A7 -> A | AA10: =L10 -> Freezing ramp | AB10: =M10 -> 0 | AC10: =F29 -> 0 | AD10: =TEXT(E7,0)&" min" -> 140 min | AF10: =$AF$8&": "&AA10 -> period vertical line: Freezing ramp
A11: E | B11: Re-cooling ramp | C11: -40 | D11: =(C11-C10)/E11 -> -0.375 | E11: 80 | F11: 10 | H11: 1000 | M11: =F7 -> 2.333333333 | N11: =$C$30 -> 40 | Q11: =$C$29 -> 45 | U11: =$C$31 -> -55 | AB11: =M10 -> 0 | AC11: =$F$30 -> 4
A12: F | B12: Re-cooling hold | C12: -40 | E12: 60 | F12: 11 | H12: 1000 | K12: =A8 -> B | L12: =IF(ISBLANK(B8)," ",B8) -> Freezing hold | M12: =M11 -> 2.333333333 | N12: =$C$30 -> 40 | O12: =IF(ISBLANK(E8)," ",E8) -> 120 | Q12: =M11+(M13-M12)/2 -> 3.333333333 | R12: =$Q$8&": "&L12 -> period label: Freezing hold | U12: =Q12 -> 3.333333333 | V12: =$V$8&": "& O12 -> time period label: 120 | Z12: =A8 -> B | AA12: =L12 -> Freezing hold | AB12: =M12 -> 2.333333333 | AC12: =F29 -> 0 | AD12: =TEXT(E8,0)&" min" -> 120 min | AF12: =$AF$8&": "&AA12 -> period vertical line: Freezing hold
A13: G | B13: Vacuum ramp | C13: -40 | E13: 1 | F13: 11.01666667 | G13: 999.6 | H13: 0.4 | M13: =F8 -> 4.333333333 | N13: =$C$30 -> 40 | Q13: =$C$29 -> 45 | U13: =$C$31 -> -55 | AB13: =M12 -> 2.333333333 | AC13: =$F$30 -> 4
A14: H | B14: Primary drying hold | C14: -40 | E14: 60 | F14: 12.01666667 | H14: 0.4 | K14: =A9 -> C | L14: =IF(ISBLANK(B9)," ",B9) -> Re-heating ramp | M14: =M13 -> 4.333333333 | N14: =$C$30 -> 40 | O14: =IF(ISBLANK(E9)," ",E9) -> 80 | Q14: =M14+(M15-M14)/2 -> 5 | R14: =$Q$8&": "&L14 -> period label: Re-heating ramp | U14: =Q14 -> 5 | V14: =$V$8&": "& O14 -> time period label: 80 | Z14: =A9 -> C | AA14: =L14 -> Re-heating ramp | AB14: =M14 -> 4.333333333 | AC14: =F29 -> 0 | AD14: =TEXT(E9,0)&" min" -> 80 min | AF14: =$AF$8&": "&AA14 -> period vertical line: Re-heating ramp
A15: I | B15: Primary drying ramp | C15: 10 | D15: =(C15-C14)/E15 -> 0.5 | E15: 100 | F15: 13.68333333 | H15: 0.4 | M15: =F9 -> 5.666666667 | N15: =$C$30 -> 40 | Q15: =$C$29 -> 45 | U15: =$C$31 -> -55 | AB15: =M14 -> 4.333333333 | AC15: =$F$30 -> 4
A16: J | B16: Primary drying hold | C16: 10 | E16: 720 | F16: 25.68333333 | H16: 0.4 | K16: =A10 -> D | L16: =IF(ISBLANK(B10)," ",B10) -> Annealing hold | M16: =M15 -> 5.666666667 | N16: =$C$30 -> 40 | O16: =IF(ISBLANK(E10)," ",E10) -> 180 | Q16: =M16+(M17-M16)/2 -> 7.166666667 | R16: =$Q$8&": "&L16 -> period label: Annealing hold | U16: =Q16 -> 7.166666667 | V16: =$V$8&": "& O16 -> time period label: 180 | Z16: =A10 -> D | AA16: =L16 -> Annealing hold | AB16: =M16 -> 5.666666667 | AC16: =F29 -> 0 | AD16: =TEXT(E10,0)&" min" -> 180 min | AF16: =$AF$8&": "&AA16 -> period vertical line: Annealing hold
A17: K | B17: secondary drying ramp | C17: 20 | E17: 360 | F17: 31.68333333 | H17: 0.4 | M17: =F10 -> 8.666666667 | N17: =$C$30 -> 40 | Q17: =$C$29 -> 45 | U17: =$C$31 -> -55 | AB17: =M16 -> 5.666666667 | AC17: =$F$30 -> 4
A18: L | F18: 31.68333333 | K18: =A11 -> E | L18: =IF(ISBLANK(B11)," ",B11) -> Re-cooling ramp | M18: =M17 -> 8.666666667 | N18: =$C$30 -> 40 | O18: =IF(ISBLANK(E11)," ",E11) -> 80 | Q18: =M18+(M19-M18)/2 -> 9.333333333 | R18: =$Q$8&": "&L18 -> period label: Re-cooling ramp | U18: =Q18 -> 9.333333333 | V18: =$V$8&": "& O18 -> time period label: 80 | Z18: =A11 -> E | AA18: =L18 -> Re-cooling ramp | AB18: =M18 -> 8.666666667 | AC18: =F29 -> 0 | AD18: =TEXT(E11,0)&" min" -> 80 min | AF18: =$AF$8&": "&AA18 -> period vertical line: Re-cooling ramp
A19: M | F19: 31.68333333 | M19: =F11 -> 10 | N19: =$C$30 -> 40 | Q19: =$C$29 -> 45 | U19: =$C$31 -> -55 | AB19: =M18 -> 8.666666667 | AC19: =$F$30 -> 4
A20: N | F20: 31.68333333 | K20: =A12 -> F | L20: =IF(ISBLANK(B12)," ",B12) -> Re-cooling hold | M20: =M19 -> 10 | N20: =$C$30 -> 40 | O20: =IF(ISBLANK(E12)," ",E12) -> 60 | Q20: =M20+(M21-M20)/2 -> 10.5 | R20: =$Q$8&": "&L20 -> period label: Re-cooling hold | U20: =Q20 -> 10.5 | V20: =$V$8&": "& O20 -> time period label: 60 | Z20: =A12 -> F | AA20: =L20 -> Re-cooling hold | AB20: =M20 -> 10 | AC20: =F29 -> 0 | AD20: =TEXT(E12,0)&" min" -> 60 min | AF20: =$AF$8&": "&AA20 -> period vertical line: Re-cooling hold
A21: O | F21: 31.68333333 | M21: =F12 -> 11 | N21: =$C$30 -> 40 | Q21: =$C$29 -> 45 | U21: =$C$31 -> -55 | AB21: =M20 -> 10 | AC21: =$F$30 -> 4
A22: P | F22: 31.68333333 | K22: =A13 -> G | L22: =IF(ISBLANK(B13)," ",B13) -> Vacuum ramp | M22: =M21 -> 11 | N22: =$C$30 -> 40 | O22: =IF(ISBLANK(E13)," ",E13) -> 1 | Q22: =M22+(M23-M22)/2 -> 11.00833333 | R22: =$Q$8&": "&L22 -> period label: Vacuum ramp | U22: =Q22 -> 11.00833333 | V22: =$V$8&": "& O22 -> time period label: 1 | Z22: =A13 -> G | AA22: =L22 -> Vacuum ramp | AB22: =M22 -> 11 | AC22: =F59 -> 0 | AD22: =TEXT(E13,0)&" min" -> 1 min | AF22: =$AF$8&": "&AA22 -> period vertical line: Vacuum ramp
A23: Q | F23: 31.68333333 | M23: =F13 -> 11.01666667 | N23: =$C$30 -> 40 | Q23: =$C$29 -> 45 | U23: =$C$31 -> -55 | AB23: =M22 -> 11 | AC23: =$F$30 -> 4
A24: R | F24: 31.68333333 | K24: =A14 -> H | L24: =IF(ISBLANK(B14)," ",B14) -> Primary drying hold | M24: =M23 -> 11.01666667 | N24: =$C$30 -> 40 | O24: =IF(ISBLANK(E14)," ",E14) -> 60 | Q24: =M24+(M25-M24)/2 -> 11.51666667 | R24: =$Q$8&": "&L24 -> period label: Primary drying hold | U24: =Q24 -> 11.51666667 | V24: =$V$8&": "& O24 -> time period label: 60 | Z24: =A14 -> H | AA24: =L24 -> Primary drying hold | AB24: =M24 -> 11.01666667 | AC24: =F61 -> 0 | AD24: =TEXT(E14,0)&" min" -> 60 min | AF24: =$AF$8&": "&AA24 -> period vertical line: Primary drying hold
A25: S | F25: 31.68333333 | M25: =F14 -> 12.01666667 | N25: =$C$30 -> 40 | Q25: =$C$29 -> 45 | U25: =$C$31 -> -55 | AB25: =M24 -> 11.01666667 | AC25: =$F$30 -> 4
A26: T | F26: 31.68333333 | K26: =A15 -> I | L26: =IF(ISBLANK(B15)," ",B15) -> Primary drying ramp | M26: =M25 -> 12.01666667 | N26: =$C$30 -> 40 | O26: =IF(ISBLANK(E15)," ",E15) -> 100 | Q26: =M26+(M27-M26)/2 -> 12.85 | R26: =$Q$8&": "&L26 -> period label: Primary drying ramp | U26: =Q26 -> 12.85 | V26: =$V$8&": "& O26 -> time period label: 100 | Z26: =A15 -> I | AA26: =L26 -> Primary drying ramp | AB26: =M26 -> 12.01666667 | AC26: =F63 -> 0 | AD26: =TEXT(E15,0)&" min" -> 100 min | AF26: =$AF$8&": "&AA26 -> period vertical line: Primary drying ramp
M27: =F15 -> 13.68333333 | N27: =$C$30 -> 40 | Q27: =$C$29 -> 45 | U27: =$C$31 -> -55 | AB27: =M26 -> 12.01666667 | AC27: =$F$30 -> 4
K28: =A16 -> J | L28: =IF(ISBLANK(B16)," ",B16) -> Primary drying hold | M28: =M27 -> 13.68333333 | N28: =$C$30 -> 40 | O28: =IF(ISBLANK(E16)," ",E16) -> 720 | Q28: =M28+(M29-M28)/2 -> 19.68333333 | R28: =$Q$8&": "&L28 -> period label: Primary drying hold | U28: =Q28 -> 19.68333333 | V28: =$V$8&": "& O28 -> time period label: 720 | Z28: =A16 -> J | AA28: =L28 -> Primary drying hold | AB28: =M28 -> 13.68333333 | AC28: =F65 -> 0 | AD28: =TEXT(E16,0)&" min" -> 720 min | AF28: =$AF$8&": "&AA28 -> period vertical line: Primary drying hold
B29: Value for Y1 | C29: 45 | E29: Value for Y2 (min) | F29: 0 | M29: =F16 -> 25.68333333 | N29: =$C$30 -> 40 | Q29: =$C$29 -> 45 | U29: =$C$31 -> -55 | AB29: =M28 -> 13.68333333 | AC29: =$F$30 -> 4
C30: 40 | E30: Value for Y2 (max) | F30: 4 | K30: =A17 -> K | L30: =IF(ISBLANK(B17)," ",B17) -> secondary drying ramp | M30: =M29 -> 25.68333333 | N30: =$C$30 -> 40 | O30: =IF(ISBLANK(E17)," ",E17) -> 360 | Q30: =M30+(M31-M30)/2 -> 28.68333333 | R30: =$Q$8&": "&L30 -> period label: secondary drying ramp | U30: =Q30 -> 28.68333333 | V30: =$V$8&": "& O30 -> time period label: 360 | Z30: =A17 -> K | AA30: =L30 -> secondary drying ramp | AB30: =M30 -> 25.68333333 | AC30: =F67 -> 0 | AD30: =TEXT(E17,0)&" min" -> 360 min | AF30: =$AF$8&": "&AA30 -> period vertical line: secondary drying ramp
C31: -55 | M31: =F17 -> 31.68333333 | N31: =$C$30 -> 40 | Q31: =$C$29 -> 45 | U31: =$C$31 -> -55 | AB31: =M30 -> 25.68333333 | AC31: =$F$30 -> 4
K32: =A18 -> L | L32: =IF(ISBLANK(B18)," ",B18) ->  | M32: =M31 -> 31.68333333 | N32: =$C$30 -> 40 | O32: =IF(ISBLANK(E18)," ",E18) ->  | Q32: =M32+(M33-M32)/2 -> 31.68333333 | R32: =$Q$8&": "&L32 -> period label: | U32: =Q32 -> 31.68333333 | V32: =$V$8&": "& O32 -> time period label: | Z32: =A18 -> L | AA32: =L32 ->  | AB32: =M32 -> 31.68333333 | AC32: =F69 -> 0 | AD32: =TEXT(E18,0)&" min" -> 0 min | AF32: =$AF$8&": "&AA32 -> period vertical line:
M33: =F18 -> 31.68333333 | N33: =$C$30 -> 40 | Q33: =$C$29 -> 45 | U33: =$C$31 -> -55 | AB33: =M32 -> 31.68333333 | AC33: =$F$30 -> 4
K34: =A19 -> M | L34: =IF(ISBLANK(B19)," ",B19) ->  | M34: =M33 -> 31.68333333 | N34: =$C$30 -> 40 | O34: =IF(ISBLANK(E19)," ",E19) ->  | Q34: =M34+(M35-M34)/2 -> 31.68333333 | R34: =$Q$8&": "&L34 -> period label: | U34: =Q34 -> 31.68333333 | V34: =$V$8&": "& O34 -> time period label: | Z34: =A19 -> M | AA34: =L34 ->  | AB34: =M34 -> 31.68333333 | AC34: =F71 -> 0 | AD34: =TEXT(E19,0)&" min" -> 0 min | AF34: =$AF$8&": "&AA34 -> period vertical line:
M35: =F19 -> 31.68333333 | N35: =$C$30 -> 40 | Q35: =$C$29 -> 45 | U35: =$C$31 -> -55 | AB35: =M34 -> 31.68333333 | AC35: =$F$30 -> 4
K36: =A20 -> N | L36: =IF(ISBLANK(B20)," ",B20) ->  | M36: =M35 -> 31.68333333 | N36: =$C$30 -> 40 | O36: =IF(ISBLANK(E20)," ",E20) ->  | Q36: =M36+(M37-M36)/2 -> 31.68333333 | R36: =$Q$8&": "&L36 -> period label: | U36: =Q36 -> 31.68333333 | V36: =$V$8&": "& O36 -> time period label: | Z36: =A20 -> N | AA36: =L36 ->  | AB36: =M36 -> 31.68333333 | AC36: =F73 -> 0 | AD36: =TEXT(E20,0)&" min" -> 0 min | AF36: =$AF$8&": "&AA36 -> period vertical line:
M37: =F20 -> 31.68333333 | N37: =$C$30 -> 40 | Q37: =$C$29 -> 45 | U37: =$C$31 -> -55 | AB37: =M36 -> 31.68333333 | AC37: =$F$30 -> 4
K38: =A21 -> O | L38: =IF(ISBLANK(B21)," ",B21) ->  | M38: =M37 -> 31.68333333 | N38: =$C$30 -> 40 | O38: =IF(ISBLANK(E21)," ",E21) ->  | Q38: =M38+(M39-M38)/2 -> 31.68333333 | R38: =$Q$8&": "&L38 -> period label: | U38: =Q38 -> 31.68333333 | V38: =$V$8&": "& O38 -> time period label: | Z38: =A21 -> O | AA38: =L38 ->  | AB38: =M38 -> 31.68333333 | AC38: =F75 -> 0 | AD38: =TEXT(E21,0)&" min" -> 0 min | AF38: =$AF$8&": "&AA38 -> period vertical line:
M39: =F21 -> 31.68333333 | N39: =$C$30 -> 40 | Q39: =$C$29 -> 45 | U39: =$C$31 -> -55 | AB39: =M38 -> 31.68333333 | AC39: =$F$30 -> 4
K40: =A22 -> P | L40: =IF(ISBLANK(B22)," ",B22) ->  | M40: =M39 -> 31.68333333 | N40: =$C$30 -> 40 | O40: =IF(ISBLANK(E22)," ",E22) ->  | Q40: =M40+(M41-M40)/2 -> 31.68333333 | R40: =$Q$8&": "&L40 -> period label: | U40: =Q40 -> 31.68333333 | V40: =$V$8&": "& O40 -> time period label: | Z40: =A22 -> P | AA40: =L40 ->  | AB40: =M40 -> 31.68333333 | AC40: =F77 -> 0 | AD40: =TEXT(E22,0)&" min" -> 0 min | AF40: =$AF$8&": "&AA40 -> period vertical line:
M41: =F22 -> 31.68333333 | N41: =$C$30 -> 40 | Q41: =$C$29 -> 45 | U41: =$C$31 -> -55 | AB41: =M40 -> 31.68333333 | AC41: =$F$30 -> 4
K42: =A23 -> Q | L42: =IF(ISBLANK(B23)," ",B23) ->  | M42: =M41 -> 31.68333333 | N42: =$C$30 -> 40 | O42: =IF(ISBLANK(E23)," ",E23) ->  | Q42: =M42+(M43-M42)/2 -> 31.68333333 | R42: =$Q$8&": "&L42 -> period label: | U42: =Q42 -> 31.68333333 | V42: =$V$8&": "& O42 -> time period label: | Z42: =A23 -> Q | AA42: =L42 ->  | AB42: =M42 -> 31.68333333 | AC42: =F79 -> 0 | AD42: =TEXT(E23,0)&" min" -> 0 min | AF42: =$AF$8&": "&AA42 -> period vertical line:
M43: =F23 -> 31.68333333 | N43: =$C$30 -> 40 | Q43: =$C$29 -> 45 | U43: =$C$31 -> -55 | AB43: =M42 -> 31.68333333 | AC43: =$F$30 -> 4
K44: =A24 -> R | L44: =IF(ISBLANK(B24)," ",B24) ->  | M44: =M43 -> 31.68333333 | N44: =$C$30 -> 40 | O44: =IF(ISBLANK(E24)," ",E24) ->  | Q44: =M44+(M45-M44)/2 -> 31.68333333 | R44: =$Q$8&": "&L44 -> period label: | U44: =Q44 -> 31.68333333 | V44: =$V$8&": "& O44 -> time period label: | Z44: =A24 -> R | AA44: =L44 ->  | AB44: =M44 -> 31.68333333 | AC44: =F81 -> 0 | AD44: =TEXT(E24,0)&" min" -> 0 min | AF44: =$AF$8&": "&AA44 -> period vertical line:
M45: =F24 -> 31.68333333 | N45: =$C$30 -> 40 | Q45: =$C$29 -> 45 | U45: =$C$31 -> -55 | AB45: =M44 -> 31.68333333 | AC45: =$F$30 -> 4
K46: =A25 -> S | L46: =IF(ISBLANK(B25)," ",B25) ->  | M46: =M45 -> 31.68333333 | N46: =$C$30 -> 40 | O46: =IF(ISBLANK(E25)," ",E25) ->  | Q46: =M46+(M47-M46)/2 -> 31.68333333 | R46: =$Q$8&": "&L46 -> period label: | U46: =Q46 -> 31.68333333 | V46: =$V$8&": "& O46 -> time period label: | Z46: =A25 -> S | AA46: =L46 ->  | AB46: =M46 -> 31.68333333 | AC46: =F83 -> 0 | AD46: =TEXT(E25,0)&" min" -> 0 min | AF46: =$AF$8&": "&AA46 -> period vertical line:
M47: =F25 -> 31.68333333 | N47: =$C$30 -> 40 | Q47: =$C$29 -> 45 | U47: =$C$31 -> -55 | AB47: =M46 -> 31.68333333 | AC47: =$F$30 -> 4
K48: =A26 -> T | L48: =IF(ISBLANK(B26)," ",B26) ->  | M48: =M47 -> 31.68333333 | N48: =$C$30 -> 40 | O48: =IF(ISBLANK(E26)," ",E26) ->  | Q48: =M48+(M49-M48)/2 -> 31.68333333 | R48: =$Q$8&": "&L48 -> period label: | U48: =Q48 -> 31.68333333 | V48: =$V$8&": "& O48 -> time period label: | Z48: =A26 -> T | AA48: =L48 ->  | AB48: =M48 -> 31.68333333 | AC48: =F85 -> 0 | AD48: =TEXT(E26,0)&" min" -> 0 min | AF48: =$AF$8&": "&AA48 -> period vertical line:
M49: =F26 -> 31.68333333 | N49: =$C$30 -> 40 | Q49: =$C$29 -> 45 | U49: =$C$31 -> -55 | AB49: =M48 -> 31.68333333 | AC49: =$F$30 -> 4
B62: Drop down list options for cycle builder
B63: Equilibrium phase
B64: Freezing ramp
B65: Freezing hold
B66: Re-heating ramp
B67: Annealing hold
B68: Annealing hold 1
B69: Annealing hold 2
B70: Annealing hold 3
B71: Re-cooling ramp
B72: Re-cooling hold
B73: Vacuum applied
B74: Primary drying hold
B75: Primary drying ramp
B76: Primary drying hold
B77: secondary drying ramp
B78: secondary drying hold

Sheet Phase diagram
N1: Ambient conditions
A2: Lyo cycle (live) | G2: Graph in the format suitable for book chapter or manuscript | N2: Room temperature | O2: 20 | P2: °C | V2: =N2&" "&TEXT(O2,"0")&" "&P2 -> Room temperature 20 °C
A3: t (start) | B3: 0 | C3: min | N3: Formulation parameters
A4: dt | B4: 10 | C4: min | N4: Glass transiton temperature | O4: -34 | P4: °C | V4: =N4&" "&TEXT(O4,"0")&" "&P4 -> Glass transiton temperature -34 °C
A5: time (t- dt) | B5: 140 | C5: min | N5: Eutectic temperature | O5: -15 | P5: °C | V5: =N5&" "&TEXT(O5,"0")&" "&P5 -> Eutectic temperature -15 °C
A6: time (t) | B6: 140 | C6: min | N6: Collapse temperature | O6: -32 | P6: °C | V6: =N6&" "&TEXT(O6,"0")&" "&P6 -> Collapse temperature -32 °C
A7: Ts (0) | B7: 20 | C7: °C | N7: Process parameters
A8: rate | B8: -0.5 | N8: Nucleation temperature | O8: -12 | P8: °C | T8: log chamber pressure | U8: =VLOOKUP(O8,'Data for phase diagram'!B7:J237,9,FALSE) -> -2.662900304 | V8: =N8&" "&TEXT(O8,"0")&P8 -> Nucleation temperature -12 °C
A9: dT | B9: =B8*B4 -> -5 | C9: °C
A10: Ts (t - dt) | B10: -50 | C10: °C | O10: set temperature | Q10: heating/cooling rate (°C min-1) | R10: ramp/hold (min) | S10: set pressure (chamber, µbar) | T10: set pressure (chamber, bar) | U10: log chamber pressure/bar
A11: Ts (t) | B11: -50 | C11: °C | N11: Set parameters
A12: Pc (bar) | B12: 0 | C12: bar | N12: Set point (Equilibration) Shelf temperature | O12: ='Lyo-cycle'!C6 -> 20 | P12: °C | T12: 1 | U12: =LOG(T12) -> 0 | V12: ="Ts = "&O12&P12 -> Ts = 20 °C | W12: Ts | X12: =TEXT(W12,0) -> Ts
N13: Set point (freezing) Shelf temperature | O13: ='Lyo-cycle'!C7 -> -50 | P13: °C | Q13: 0.5 | R13: =(O13-O12)/Q13 -> -140 | T13: 1 | U13: =LOG(T13) -> 0 | V13: ="Ts = "&O13&P13 -> Ts = -50 °C
N14: Set point (primary drying) chamber vacuum | O14: ='Lyo-cycle'!C8 -> -50 | P14: °C | Q14: 0 | S14: ='Lyo-cycle'!H13*1000 -> 400 | T14: =S14/1000000 -> 0.0004 | U14: =LOG(T14) -> -3.397940009 | V14: Ts = -50 °C
N15: Set point (primary drying) shelf temperature | O15: ='Lyo-cycle'!C15 -> 10 | P15: °C | Q15: 0.5 | R15: =(O15-O14)/Q15 -> 120 | S15: =S14 -> 400 | T15: =S15/1000000 -> 0.0004 | U15: =LOG(T15) -> -3.397940009 | V15: Ts = 10 °C
N16: Set point (secondary drying) shelf temperature | O16: 20 | P16: °C | Q16: 0.5 | R16: =(O16-O15)/Q16 -> 20 | V16: Ts = 20 °C
N18: Set point (primary drying) condensor temperature | O18: -80 | P18: °C
N20: The ramp time is the time for the system to reach the set temperature
N21: It is determined by the heating or cooling rate applied
G23: height of call out data labels = 0.75 cm | N23: Process parameters (resulting from the set parameters)
H24: Enter lowest temperature on the x-axis | I24: -120 | O24: Tp | Q24: Pi
H25: Enter lowest log pressure on the y-axis | I25: -7 | N25: DT between Ti and Ts (Equilibration) | O25: 0 | S25: Text for the call-outs on the data points on the graph
H26: dotted line - room temperature | I26: =O12 -> 20 | J26: =I25 -> -7 | N26: =N12 -> Set point (Equilibration) Shelf temperature | O26: =O12+O25 -> 20 | Q26: =VLOOKUP(O26,'Data for phase diagram'!B7:J237,9,FALSE) -> -1.630914079 | S26: ="Pi @ liquid interface " & TEXT(10^Q26*10^6,"0,000")&" "& W26&"bar" -> Pi @ liquid interface 23,393 µbar | W26: µ
I27: =O12 -> 20 | J27: =U12 -> 0 | N27: DT between Ti and Ts (freezing) | O27: 0 | W27: µ
H28: dotted line - room pressure | I28: 20 | J28: 0 | N28: =N13 -> Set point (freezing) Shelf temperature | O28: =O13+O27 -> -50 | Q28: =VLOOKUP(O28,'Data for phase diagram'!B7:J237,9,FALSE) -> -4.40494491 | S28: ="Pi @ ice interface " & TEXT(10^Q28*10^6,0)&" "& W26&"bar" -> Pi @ ice interface 39 µbar
I29: =I24 -> -120 | J29: 0 | N29: =N18 -> Set point (primary drying) condensor temperature | O29: =O18 -> -80 | Q29: =VLOOKUP(O29,'Data for phase diagram'!B7:J237,9,FALSE) -> -6.259637311 | S29: =N29&" : Pi = "&TEXT(10^Q29*10^6,"0.00")&" "& W27&"bar" -> Set point (primary drying) condensor temperature : Pi = 0.55 µbar
H30: dotted line - primary drying shelf temperature & chamber pressure | I30: =O13 -> -50 | J30: =I25 -> -7
I31: =O13 -> -50 | J31: =J27 -> 0
H32: dotted line - condensor temperature & ice vapour pressure | I32: =I24 -> -120 | J32: =Q29 -> -6.259637311
I33: -80 | J33: =Q29 -> -6.259637311
H34: dotted line - Pi at room temperature | I34: =I24 -> -120 | J34: =Q26 -> -1.630914079
I35: 20 | J35: =Q26 -> -1.630914079
H36: dotted line - Pi at primary drying temperature | I36: =I24 -> -120 | J36: =Q28 -> -4.40494491
I37: -40 | J37: =Q28 -> -4.40494491
H38: dotted line - primary drying temperature | I38: =O13 -> -50 | J38: =U14 -> -3.397940009
I39: =O15 -> 10 | J39: =U15 -> -3.397940009
H40: solid line - collpase temperature | I40: =O6 -> -32 | J40: 3
I41: =O6 -> -32 | J41: -7

Sheet Data for phase diagram
B1: Vapour pressure of Liquid water and ice as a function of temp
B2: Vapour Pressure of Liquid Water from 0°C to 373°C | L2: Melting Point Line 0°C to 40°C | R2: Temp/Pressure at 1 ATM
B3: Temp C | C3: Temp K | E3: Pressure HPa | F3: Pressure Torr/mmHG | G3: Ln Pressure Torr/mmHG | H3: Pressure in BAR | I3: LN Pressure in bar | J3: Log Pressure in Bar | L3: Temp C | M3: Temp K | N3: Pressure by formula Torr | O3: Ln Pressure by formula Torr | P3: Log Pressure by formula Torr | R3: Temp C | S3: Temp K | T3: Pressure in PA | U3: Pressure in Torr | V3: Pressure in Ln Torr | W3: Pressure in Bar | X3: LN Pressure in Bar | Y3: Log Pressure in Bar
B7: -80 | C7: =B7+273.15 -> 193.15 | D7: =C7-273.2 -> -80.05 | E7: 0.055 | F7: =E7*0.0075006168270417 -> 0.0004125339255 | G7: =LN(F7) -> -7.793192112 | H7: =E7*0.00001 -> 5.5e-07 | I7: =LN(H7) -> -14.41334756 | J7: =LOG(H7) -> -6.259637311 | L7: 0 | M7: =L7+273.15 -> 273.15 | N7: =EXP(20.386-(5132/M7)) -> 4.942090376 | O7: =LN(N7) -> 1.597788395 | P7: =LOG(N7) -> 0.693910683 | R7: 0 | S7: =R7+273.15 -> 273.15 | T7: 101325 | U7: =T7*0.0075006168270417 -> 760 | V7: =LN(U7) -> 6.633318433 | W7: =T7*0.00001 -> 1.01325 | X7: =LN(W7) -> 0.01316298653 | Y7: =LOG(W7) -> 0.005716612414
B8: -75 | C8: 198.15 | D8: -75.05 | E8: 0.122 | F8: 0.0009150752529 | G8: -6.996504252 | H8: 1.22e-06 | I8: -13.6166597 | J8: -5.913640169 | L8: -0.5 | M8: =L8+273.15 -> 272.65 | N8: =EXP(20.386-(5132/M8)) -> 4.774711617 | O8: =LN(N8) -> 1.563333578 | P8: =LOG(N8) -> 0.6789471462 | R8: 0.01 | S8: =R8+273.15 -> 273.16 | T8: 611.657 | U8: =T8*0.0075006168270417 -> 4.587804787 | V8: =LN(U8) -> 1.52340165 | W8: =T8*0.00001 -> 0.00611657 | X8: =LN(W8) -> -5.096753797 | Y8: =LOG(W8) -> -2.21349205
B9: -70 | C9: 203.15 | D9: -70.05 | E9: 0.261 | F9: 0.001957660992 | G9: -6.23600489 | H9: 2.61e-06 | I9: -12.85616034 | J9: -5.583359493 | L9: -1 | M9: 272.15 | N9: 4.612417665 | O9: 1.528752159 | P9: 0.6639286267
B10: -65 | C10: 208.15 | D10: -65.05 | E10: 0.54 | F10: 0.004050333087 | G10: -5.508956158 | H10: 5.4e-06 | I10: -12.1291116 | J10: -5.26760624 | L10: -1.5 | M10: 271.65 | N10: 4.455072962 | O10: 1.494043438 | P10: 0.648854821
B11: -60 | C11: 213.15 | D11: -60.05 | E11: 1.08 | F11: 0.008100666173 | G11: -4.815808977 | H11: 1.08e-05 | I11: -11.43596442 | J11: -4.966576245 | L11: -2 | M11: 271.15 | N11: 4.302545018 | O11: 1.459206712 | P11: 0.633725423 | R11: Melting Curve using Simon-Glatzel equation 0°C to -80°C | W11: Melting curve from wiki plot
B12: -55 | C12: 218.15 | D12: -55.05 | E12: 2.093 | F12: 0.01569879102 | G12: -4.154171575 | H12: 2.093e-05 | I12: -10.77432702 | J12: -4.679230772 | L12: -2.5 | M12: 270.65 | N12: 4.154704352 | O12: 1.424241271 | P12: 0.6185401249 | R12: Temp K | S12: Pressure (Gpa) | T12: Pressure bar | U12: Log Pressure in bar | W12: Temp in Kelvin | Y12: Pressure in MPA | Z12: Pressue in Bar | AA12: Log Pressure in Bar | AB12: LN Pressure in basr
B13: -50 | C13: 223.15 | D13: -50.05 | E13: 3.936 | F13: 0.02952242783 | G13: -3.522605039 | H13: 3.936e-05 | I13: -10.14276049 | J13: -4.40494491 | L13: -3 | M13: 270.15 | N13: 4.01142444 | O13: 1.3891464 | P13: 0.6032986161 | R13: 273.15 | S13: =(2.17+1.253*(R13/354.8)^3-1) -> 1.741746944 | T13: =S13*10000 -> 17417.46944 | U13: =LOG(T13) -> 4.240985057 | W13: 273.15 | X13: =W13-273.2 -> -0.05 | Y13: =101325*0.000001 -> 0.101325 | Z13: =Y13*10 -> 1.01325 | AA13: =LOG(Z13) -> 0.005716612414 | AB13: =LN(Z13) -> 0.01316298653
B14: -45 | C14: 228.15 | D14: -45.05 | E14: 7.202 | F14: 0.05401944239 | G14: -2.918411253 | H14: 7.202e-05 | I14: -9.5385667 | J14: -4.142546883 | L14: -3.5 | M14: 269.65 | N14: 3.872581657 | O14: 1.35392138 | P14: 0.5880005841 | R14: 272.65 | S14: =(2.17+1.253*(R14/354.8)^3-1) -> 1.738612946 | T14: =S14*10000 -> 17386.12946 | U14: =LOG(T14) -> 4.240202909 | W14: 273.16 | X14: =W14-273.2 -> -0.04 | Y14: =611.657*0.000001 -> 0.000611657 | Z14: =Y14*10 -> 0.00611657 | AA14: -2.21349205 | AB14: -5.096753797
B15: -40 | C15: 233.15 | D15: -40.05 | E15: 12.84 | F15: 0.09630792006 | G15: -2.34020472 | H15: 0.0001284 | I15: -8.960360167 | J15: -3.891434976 | L15: -4 | M15: 269.15 | N15: 3.738055229 | O15: 1.318565484 | P15: 0.5726457137 | R15: 272.15 | S15: 1.735490422 | T15: 17354.90422 | U15: 4.239422221 | W15: 272.9 | X15: -0.3 | Y15: 5 | Z15: =Y15*10 -> 50 | AA15: 1.698970004 | AB15: 3.912023005
B16: -39.5 | C16: 233.65 | D16: -39.55 | E16: 13.59 | F16: 0.1019333827 | G16: -2.28343579 | H16: 0.0001359 | I16: -8.903591237 | J16: -3.866780543 | L16: -4.5 | M16: 268.65 | N16: 3.607727174 | O16: 1.283077983 | P16: 0.5572336877 | R16: 271.65 | S16: 1.73237935 | T16: 17323.7935 | U16: 4.238642998 | W16: 272.44 | X16: -0.76 | Y16: 10 | Z16: 100 | AA16: 2 | AB16: 4.605170186
B17: -39 | C17: 234.15 | D17: -39.05 | E17: 14.37 | F17: 0.1077838638 | G17: -2.227627318 | H17: 0.0001437 | I17: -8.847782765 | J17: -3.842543232 | L17: -5 | M17: 268.15 | N17: 3.481482257 | O17: 1.247458139 | P17: 0.5417641862 | R17: 271.15 | S17: 1.72927971 | T17: 17292.7971 | U17: 4.237865246 | W17: 271.74 | X17: -1.46 | Y17: 20 | Z17: 200 | AA17: 2.301029996 | AB17: 5.298317367
B18: -38.5 | C18: 234.65 | D18: -38.55 | E18: 15.2 | F18: 0.1140093758 | G18: -2.17147459 | H18: 0.000152 | I18: -8.791630037 | J18: -3.818156412 | L18: -5.5 | M18: 267.65 | N18: 3.359207933 | O18: 1.211705212 | P18: 0.5262368873 | R18: 270.65 | S18: 1.72619148 | T18: 17261.9148 | U18: 4.237088969 | W18: 269.18 | X18: -4.02 | Y18: 50 | Z18: 500 | AA18: 2.698970004 | AB18: 6.214608098
B19: -38 | C19: 235.15 | D19: -38.05 | E19: 16.07 | F19: 0.1205349124 | G19: -2.115815838 | H19: 0.0001607 | I19: -8.735971285 | J19: -3.793984123 | L19: -6 | M19: 267.15 | N19: 3.2407943 | O19: 1.175818454 | P19: 0.5106514663 | R19: 270.15 | S19: 1.723114639 | T19: 17231.14639 | U19: 4.236314172 | W19: 264.53 | X19: -8.67 | Y19: 100 | Z19: 1000 | AA19: 3 | AB19: 6.907755279
B20: -37.5 | C20: 235.65 | D20: -37.55 | E20: 16.99 | F20: 0.1274354799 | G20: -2.060145083 | H20: 0.0001699 | I20: -8.680300529 | J20: -3.769806621 | L20: -6.5 | M20: 266.65 | N20: 3.126134047 | O20: 1.139797112 | P20: 0.4950075964 | R20: 269.65 | S20: 1.720049167 | T20: 17200.49167 | U20: 4.235540861 | W20: 258.95 | X20: -14.25 | Y20: 150 | Z20: 1500 | AA20: 3.176091259 | AB20: 7.313220387
B21: -37 | C21: 236.15 | D21: -37.05 | E21: 17.96 | F21: 0.1347110782 | G21: -2.004622955 | H21: 0.0001796 | I21: -8.624778402 | J21: -3.745693668 | L21: -7 | M21: 266.15 | N21: 3.015122406 | O21: 1.103640428 | P21: 0.479304948 | R21: 269.15 | S21: 1.716995042 | T21: 17169.95042 | U21: 4.234769041 | W21: 252.56 | X21: -20.64 | Y21: 200 | Z21: 2000 | AA21: 3.301029996 | AB21: 7.60090246
B22: -36.5 | C22: 236.65 | D22: -36.55 | E22: 18.97 | F22: 0.1422867012 | G22: -1.949911234 | H22: 0.0001897 | I22: -8.570066681 | J22: -3.721932669 | L22: -7.5 | M22: 265.65 | N22: 2.907657104 | O22: 1.067347638 | P22: 0.4635431894 | R22: 268.65 | S22: 1.713952243 | T22: 17139.52243 | U22: 4.233998717
B23: -36 | C23: 237.15 | D23: -36.05 | E23: 20.04 | F23: 0.1503123612 | G23: -1.895039742 | H23: 0.0002004 | I23: -8.515195189 | J23: -3.698102283 | L23: -8 | M23: 265.15 | N23: 2.803638312 | O23: 1.030917971 | P23: 0.4477219861 | R23: 268.15 | S23: 1.71092075 | T23: 17109.2075 | U23: 4.233229893
B24: -35.5 | C24: 237.65 | D24: -35.55 | E24: 21.16 | F24: 0.1587130521 | G24: -1.840657411 | H24: 0.0002116 | I24: -8.460812858 | J24: -3.674484337 | L24: -8.5 | M24: 264.65 | N24: 2.702968604 | O24: 0.9943506518 | P24: 0.4318410012 | R24: 267.65 | S24: 1.70790054 | T24: 17079.0054 | U24: 4.232462576
B25: -35 | C25: 238.15 | D25: -35.05 | E25: 22.35 | F25: 0.1676387861 | G25: -1.785943697 | H25: 0.0002235 | I25: -8.406099144 | J25: -3.650722473 | L25: -9 | M25: 264.15 | N25: 2.605552901 | O25: 0.9576448987 | P25: 0.4158998951 | R25: 267.15 | S25: 1.704891594 | T25: 17048.91594 | U25: 4.23169677 | V25: 0 °C and 1 bar | W25: 1 | X25: =LOG(W25) -> 0 | Y25: 20
B26: -34.5 | C26: 238.65 | D26: -34.55 | E26: 23.59 | F26: 0.1769395509 | G26: -1.731947125 | H26: 0.0002359 | I26: -8.352102572 | J26: -3.627272059 | L26: -9.5 | M26: 263.65 | N26: 2.511298435 | O26: 0.9207999241 | P26: 0.399898326 | R26: 266.65 | S26: 1.70189389 | T26: 17018.9389 | U26: 4.230932479 | V26: −40 °C and 1 bar | W26: 1 | X26: =LOG(W26) -> 0 | Y26: -40
B27: -34 | C27: 239.15 | D27: -34.05 | E27: 24.9 | F27: 0.186765359 | G27: -1.677902215 | H27: 0.000249 | I27: -8.298057661 | J27: -3.603800653 | L27: -10 | M27: 263.15 | N27: 2.420114697 | O27: 0.8838149344 | P27: 0.3838359491 | R27: 266.15 | S27: 1.698907407 | T27: 16989.07407 | U27: 4.23016971 | V27: −40 °C and 300 µbar | W27: 0.0003 | X27: =LOG(W27) -> -3.522878745 | Y27: -40
B28: -33.5 | C28: 239.65 | D28: -33.55 | E28: 26.27 | F28: 0.197041204 | G28: -1.624342415 | H28: 0.0002627 | I28: -8.244497861 | J28: -3.580539927 | L28: -10.5 | M28: 262.65 | N28: 2.331913395 | O28: 0.84668913 | P28: 0.3677124171 | R28: 265.65 | S28: 1.695932124 | T28: 16959.32124 | U28: 4.229408467 | V28: −10 °C and 300 µbar | W28: 0.0003 | X28: =LOG(W28) -> -3.522878745 | Y28: -10
B29: -33 | C29: 240.15 | D29: -33.05 | E29: 27.71 | F29: 0.2078420923 | G29: -1.570976659 | H29: 0.0002771 | I29: -8.191132106 | J29: -3.557363474 | L29: -11 | M29: 262.15 | N29: 2.246608409 | O29: 0.8094217051 | P29: 0.3515273801 | R29: 265.15 | S29: 1.69296802 | T29: 16929.6802 | U29: 4.228648754 | V29: −40 °C and 300 µbar | W29: 0.0003 | X29: =LOG(W29) -> -3.522878745 | Y29: -40
B30: -32.5 | C30: 240.65 | D30: -32.55 | E30: 29.23 | F30: 0.2192430299 | G30: -1.517574439 | H30: 0.0002923 | I30: -8.137729886 | J30: -3.534171185 | L30: -11.5 | M30: 261.65 | N30: 2.164115749 | O30: 0.7720118479 | P30: 0.3352804855 | R30: 264.65 | S30: 1.690015073 | T30: 16900.15073 | U30: 4.227890578 | W30: 5e-05 | X30: -4.301029996 | Y30: -40
B31: -32 | C31: 241.15 | D31: -32.05 | E31: 30.82 | F31: 0.2311690106 | G31: -1.464606188 | H31: 0.0003082 | I31: -8.084761635 | J31: -3.511167366 | L31: -12 | M31: 261.15 | N31: 2.08435351 | O31: 0.7344587402 | P31: 0.318971378 | R31: 264.15 | S31: 1.687073264 | T31: 16870.73264 | U31: 4.227133943
B32: -31.5 | C32: 241.65 | D32: -31.55 | E32: 32.49 | F32: 0.2436950407 | G32: -1.411837669 | H32: 0.0003249 | I32: -8.031993115 | J32: -3.488250289 | L32: -12.5 | M32: 260.65 | N32: 2.007241834 | O32: 0.6967615576 | P32: 0.3025996997 | R32: 263.65 | S32: 1.684142571 | T32: 16841.42571 | U32: 4.226378854
B33: -31 | C33: 242.15 | D33: -31.05 | E33: 34.24 | F33: 0.2568211202 | G33: -1.359375467 | H33: 0.0003424 | I33: -7.979530914 | J33: -3.465466244 | L33: -13 | M33: 260.15 | N33: 1.932702861 | O33: 0.6589194695 | P33: 0.2861650896 | R33: 263.15 | S33: 1.681222972 | T33: 16812.22972 | U33: 4.225625315 | W33: 1e-05 | X33: =LOG(W33) -> -5 | Y33: -40
B34: -30.5 | C34: 242.65 | D34: -30.55 | E34: 36.08 | F34: 0.2706222551 | G34: -1.307031323 | H34: 0.0003608 | I34: -7.92718677 | J34: -3.442733471 | L34: -13.5 | M34: 259.65 | N34: 1.860660698 | O34: 0.6209316387 | P34: 0.2696671843 | R34: 262.65 | S34: 1.678314447 | T34: 16783.14447 | U34: 4.224873333
B35: -30 | C35: 243.15 | D35: -30.05 | E35: 38.01 | F35: 0.2850984456 | G35: -1.254920735 | H35: 0.0003801 | I35: -7.875076182 | J35: -3.42010213 | L35: -14 | M35: 259.15 | N35: 1.79104137 | O35: 0.5827972217 | P35: 0.2531056174 | R35: 262.15 | S35: 1.675416974 | T35: 16754.16974 | U35: 4.224122911
B36: -29.5 | C36: 243.65 | D36: -29.55 | E36: 40.04 | F36: 0.3003246978 | G36: -1.202891064 | H36: 0.0004004 | I36: -7.823046511 | J36: -3.397505931 | L36: -14.5 | M36: 258.65 | N36: 1.723772785 | O36: 0.5445153683 | P36: 0.2364800197 | R36: 261.65 | S36: 1.672530534 | T36: 16725.30534 | U36: 4.223374055
B37: -29 | C37: 244.15 | D37: -29.05 | E37: 42.16 | F37: 0.3162260054 | G37: -1.151298114 | H37: 0.0004216 | I37: -7.771453561 | J37: -3.375099398 | L37: -15 | M37: 258.15 | N37: 1.658784693 | O37: 0.5060852218 | P37: 0.2197900192 | R37: 261.15 | S37: 1.669655104 | T37: 16696.55104 | U37: 4.222626769
B38: -28.5 | C38: 244.65 | D38: -28.55 | E38: 44.39 | F38: 0.332952381 | G38: -1.099755799 | H38: 0.0004439 | I38: -7.719911246 | J38: -3.352714855 | L38: -15.5 | M38: 257.65 | N38: 1.59600865 | O38: 0.4675059189 | P38: 0.2030352408 | R38: 260.65 | S38: 1.666790664 | T38: 16667.90664 | U38: 4.221881059
B39: -28 | C39: =B39+273.15 -> 245.15 | D39: =C39-273.2 -> -28.05 | E39: 46.73 | F39: =E39*0.0075006168270417 -> 0.3505038243 | G39: =LN(F39) -> -1.048383662 | H39: =E39*0.00001 -> 0.0004673 | I39: =LN(H39) -> -7.668539108 | J39: =LOG(H39) -> -3.330404219 | L39: -16 | M39: 257.15 | N39: 1.535377977 | O39: 0.4287765895 | P39: 0.1862153068 | R39: 260.15 | S39: 1.663937192 | T39: 16639.37192 | U39: 4.221136929
B40: -27.5 | C40: 245.65 | D40: -27.55 | E40: 49.18 | F40: 0.3688803356 | G40: -0.9972829814 | H40: 0.0004918 | I40: -7.617438428 | J40: -3.308211476 | L40: -16.5 | M40: 256.65 | N40: 1.476827723 | O40: 0.3898963569 | P40: 0.1693298363 | R40: 259.65 | S40: 1.661094667 | T40: 16610.94667 | U40: 4.220394384
B41: -27 | C41: 246.15 | D41: -27.05 | E41: 51.74 | F41: 0.3880819146 | G41: -0.9465388415 | H41: 0.0005174 | I41: -7.566694288 | J41: -3.286173576 | L41: -17 | M41: 256.15 | N41: 1.420294632 | O41: 0.3508643373 | P41: 0.1523784456 | R41: 259.15 | S41: 1.65826307 | T41: 16582.6307 | U41: 4.219653429
B42: -26.5 | C42: 246.65 | D42: -26.55 | E42: 54.43 | F42: 0.4082585739 | G42: -0.8958545458 | H42: 0.0005443 | I42: -7.516009993 | J42: -3.264161666 | L42: -17.5 | M42: 255.65 | N42: 1.365717102 | O42: 0.3116796401 | P42: 0.1353607478 | R42: 258.65 | S42: 1.655442377 | T42: 16554.42377 | U42: 4.218914068
B43: -26 | C43: 247.15 | D43: -26.05 | E43: 57.25 | F43: 0.4294103133 | G43: -0.8453423758 | H43: 0.0005725 | I43: -7.465497823 | J43: -3.242224509 | L43: -18 | M43: 255.15 | N43: 1.313035153 | O43: 0.2723413678 | P43: 0.1182763532 | R43: 258.15 | S43: 1.652632569 | T43: 16526.32569 | U43: 4.218176307
B44: -25.5 | C44: 247.65 | D44: -25.55 | E44: 60.2 | F44: 0.451537133 | G44: -0.7950976659 | H44: 0.000602 | I44: -7.415253113 | J44: -3.220403509 | L44: -18.5 | M44: 254.65 | N44: 1.262190389 | O44: 0.2328486157 | P44: 0.1011248689 | R44: 257.65 | S44: 1.649833624 | T44: 16498.33624 | U44: 4.21744015
B45: -25 | C45: 248.15 | D45: -25.05 | E45: 63.29 | F45: 0.474714039 | G45: -0.7450426794 | H45: 0.0006329 | I45: -7.365198126 | J45: -3.198664904 | L45: -19 | M45: 254.15 | N45: 1.213125967 | O45: 0.1932004722 | P45: 0.08390589896 | R45: 257.15 | S45: 1.647045522 | T45: 16470.45522 | U45: 4.216705603
B46: -24.5 | C46: 248.65 | D46: -24.55 | E46: 66.52 | F46: 0.4989410313 | G46: -0.6952673639 | H46: 0.0006652 | I46: -7.315422811 | J46: -3.177047759 | L46: -19.5 | M46: 253.65 | N46: 1.16578656 | O46: 0.1533960181 | P46: 0.06661904422 | R46: 256.65 | S46: 1.644268241 | T46: 16442.68241 | U46: 4.215972668
B47: -24 | C47: 249.15 | D47: -24.05 | E47: 69.91 | F47: 0.5243681224 | G47: -0.6455613177 | H47: 0.0006991 | I47: -7.265716764 | J47: -3.155460698 | L47: -20 | M47: 253.15 | N47: 1.120118325 | O47: 0.1134343275 | P47: 0.04926390248 | R47: 256.15 | S47: 1.64150176 | T47: 16415.0176 | U47: 4.215241353
B48: -23.5 | C48: 249.65 | D48: -23.55 | E48: 73.45 | F48: 0.5509203059 | G48: -0.5961651156 | H48: 0.0007345 | I48: -7.216320562 | J48: -3.1340082 | L48: -20.5 | M48: 252.65 | N48: 1.076068871 | O48: 0.07331446665 | P48: 0.03184006831 | R48: 255.65 | S48: 1.638746058 | T48: 16387.46058 | U48: 4.21451166
B49: -23 | C49: 250.15 | D49: -23.05 | E49: 77.16 | F49: 0.5787475944 | G49: -0.5468888302 | H49: 0.0007716 | I49: -7.167044277 | J49: -3.112607781 | L49: -21 | M49: 252.15 | N49: 1.033587226 | O49: 0.03303549475 | P49: 0.01434713307 | R49: 255.15 | S49: 1.636001115 | T49: 16360.01115 | U49: 4.213783595
B50: -22.5 | C50: 250.65 | D50: -22.55 | E50: 81.04 | F50: 0.6078499877 | G50: -0.4978271583 | H50: 0.0008104 | I50: -7.117982605 | J50: -3.091300568 | L50: -21.5 | M50: 251.65 | N50: 0.992623802 | O50: -0.007403536658 | P50: -0.003215315117 | R50: 254.65 | S50: 1.633266908 | T50: 16332.66908 | U50: 4.213057163
B51: -22 | C51: 251.15 | D51: -22.05 | E51: 85.1 | F51: 0.638302492 | G51: -0.4489429826 | H51: 0.000851 | I51: -7.069098429 | J51: -3.07007044 | L51: -22 | M51: 251.15 | N51: 0.9531303715 | O51: -0.04800358352 | P51: -0.02084769143 | R51: 254.15 | S51: 1.630543418 | T51: 16305.43418 | U51: 4.212332368
B52: -21.5 | C52: 251.65 | D52: -21.55 | E52: 89.34 | F52: 0.6701051073 | G52: -0.4003207023 | H52: 0.0008934 | I52: -7.020476149 | J52: -3.048954052 | L52: -22.5 | M52: 250.65 | N52: 0.9150600299 | O52: -0.08876560942 | P52: -0.03855041435 | R52: 253.65 | S52: 1.627830622 | T52: 16278.30622 | U52: 4.211609214
B53: -21 | C53: 252.15 | D53: -21.05 | E53: 93.77 | F53: 0.7033328399 | G53: -0.3519250428 | H53: 0.0009377 | I53: -6.97208049 | J53: -3.027936084 | L53: -23 | M53: 250.15 | N53: 0.8783671683 | O53: -0.1296905856 | P53: -0.0563239057 | R53: 253.15 | S53: 1.625128501 | T53: 16251.28501 | U53: 4.210887707
B54: -20.5 | C54: 252.65 | D54: -20.55 | E54: 98.41 | F54: 0.7381357019 | G54: -0.3036275933 | H54: 0.0009841 | I54: -6.92378304 | J54: -3.006960768 | L54: -23.5 | M54: 249.65 | N54: 0.8430074435 | O54: -0.1707794913 | P54: -0.07416859069 | R54: 252.65 | S54: 1.622437033 | T54: 16224.37033 | U54: 4.210167851
B55: -20 | C55: 253.15 | D55: -20.05 | E55: 103.26 | F55: 0.7745136936 | G55: -0.2555199388 | H55: 0.0010326 | I55: -6.875675386 | J55: -2.986067879 | L55: -24 | M55: 249.15 | N55: 0.8089377488 | O55: -0.2120333133 | P55: -0.09208489793 | R55: 252.15 | S55: 1.619756196 | T55: 16197.56196 | U55: 4.20944965
B56: -19.5 | C56: 253.65 | D56: -19.55 | E56: 108.33 | F56: 0.8125418209 | G56: -0.2075878943 | H56: 0.0010833 | I56: -6.827743341 | J56: -2.965251257 | L56: -24.5 | M56: 248.65 | N56: 0.7761161855 | O56: -0.2534530465 | P56: -0.1100732595 | R56: 251.65 | S56: 1.61708597 | T56: 16170.8597 | U56: 4.208733109
B57: -19 | C57: 254.15 | D57: -19.05 | E57: 113.62 | F57: 0.8522200839 | G57: -0.1599104711 | H57: 0.0011362 | I57: -6.780065918 | J57: -2.944545215 | L57: -25 | M57: 248.15 | N57: 0.7445020348 | O57: -0.2950396937 | P57: -0.1281341109 | R57: 251.15 | S57: 1.614426334 | T57: 16144.26334 | U57: 4.208018233
B58: -18.5 | C58: 254.65 | D58: -18.55 | E58: 119.15 | F58: 0.8936984949 | G58: -0.1123868147 | H58: 0.0011915 | I58: -6.732542261 | J58: -2.923905953 | L58: -25.5 | M58: 247.65 | N58: 0.7140557303 | O58: -0.3367942661 | P58: -0.1462678913 | R58: 250.65 | S58: 1.611777267 | T58: 16117.77267 | U58: 4.207305026
B59: -18 | C59: 255.15 | D59: -18.05 | E59: 124.92 | F59: 0.936977054 | G59: -0.0650964858 | H59: 0.0012492 | I59: -6.685251933 | J59: -2.903368024 | L59: -26 | M59: 247.15 | N59: 0.6847388305 | O59: -0.3787177827 | P59: -0.1644750432 | R59: 250.15 | S59: 1.609138748 | T59: 16091.38748 | U59: 4.206593493
B60: -17.5 | C60: 255.65 | D60: -17.55 | E60: 130.95 | F60: 0.9822057735 | G60: -0.01795444726 | H60: 0.0013095 | I60: -6.638109894 | J60: -2.882894497 | L60: -26.5 | M60: 246.65 | N60: 0.6565139929 | O60: -0.420811271 | P60: -0.1827560129 | R60: 249.65 | S60: 1.606510755 | T60: 16065.10755 | U60: 4.205883637
B61: -17 | C61: 256.15 | D61: -17.05 | E61: 137.25 | F61: 1.02945966 | G61: 0.02903406217 | H61: 0.0013725 | I61: -6.591121385 | J61: -2.862487647 | L61: -27 | M61: 246.15 | N61: 0.6293449472 | O61: -0.4630757668 | P61: -0.2011112502 | R61: 249.15 | S61: 1.603893268 | T61: 16038.93268 | U61: 4.205175465
B62: -16.5 | C62: 256.65 | D62: -16.55 | E62: 143.82 | F62: 1.078738712 | G62: 0.07579249946 | H62: 0.0014382 | I62: -6.544362947 | J62: -2.842180716 | L62: -27.5 | M62: 245.65 | N62: 0.6031964701 | O62: -0.5055123143 | P62: -0.2195412086 | R62: 248.65 | S62: 1.601286266 | T62: 16012.86266 | U62: 4.204468979
B63: -16 | C63: 257.15 | D63: -16.05 | E63: 150.68 | F63: 1.130192943 | G63: 0.1223883646 | H63: 0.0015068 | I63: -6.497767082 | J63: -2.821944388 | L63: -28 | M63: 245.15 | N63: 0.5780343597 | O63: -0.5481219661 | P63: -0.2380463453 | R63: 248.15 | S63: 1.598689727 | T63: 15986.89727 | U63: 4.203764184
B64: -15.5 | C64: 257.65 | D64: -15.55 | E64: 157.83 | F64: 1.183822354 | G64: 0.1687484862 | H64: 0.0015783 | I64: -6.451406961 | J64: -2.801810443 | L64: -28.5 | M64: 244.65 | N64: 0.5538254114 | O64: -0.5909057838 | P64: -0.2566271212 | R64: 247.65 | S64: 1.59610363 | T64: 15961.0363 | U64: 4.203061085
B65: -15 | C65: 258.15 | D65: -15.05 | E65: 165.3 | F65: 1.239851962 | G65: 0.2149919866 | H65: 0.001653 | I65: -6.40516346 | J65: -2.781727146 | L65: -29 | M65: 244.15 | N65: 0.5305373929 | O65: -0.6338648372 | P65: -0.2752840011 | R65: 247.15 | S65: 1.593527956 | T65: 15935.27956 | U65: 4.202359687
B66: -14.5 | C66: 258.65 | D66: -14.55 | E66: 173.09 | F66: 1.298281767 | G66: 0.2610416722 | H66: 0.0017309 | I66: -6.359113775 | J66: -2.761728022 | L66: -29.5 | M66: 243.65 | N66: 0.5081390211 | O66: -0.6770002052 | P66: -0.2940174534 | R66: 246.65 | S66: 1.590962681 | T66: 15909.62681 | U66: 4.201659993
B67: -14 | C67: 259.15 | D67: -14.05 | E67: 181.22 | F67: 1.359261781 | G67: 0.3069417446 | H67: 0.0018122 | I67: -6.313213702 | J67: -2.741793874 | L67: -30 | M67: 243.15 | N67: 0.4865999383 | O67: -0.7203129755 | P67: -0.3128279505 | R67: 246.15 | S67: 1.588407786 | T67: 15884.07786 | U67: 4.200962007
B68: -13.5 | C68: 259.65 | D68: -13.55 | E68: 189.69 | F68: 1.422792006 | G68: 0.3526211425 | H68: 0.0018969 | I68: -6.267534304 | J68: -2.721955563 | L68: -30.5 | M68: 242.65 | N68: 0.4658906893 | O68: -0.7638042448 | P68: -0.3317159688 | R68: 245.65 | S68: 1.58586325 | T68: 15858.6325 | U68: 4.200265735
B69: -13 | C69: 260.15 | D69: -13.05 | E69: 198.52 | F69: 1.489022453 | G69: 0.3981198325 | H69: 0.0019852 | I69: -6.222035614 | J69: -2.702195733 | L69: -31 | M69: 242.15 | N69: 0.4459826992 | O69: -0.8074751187 | P69: -0.3506819883 | R69: 245.15 | S69: 1.58332905 | T69: 15833.2905 | U69: 4.19957118
B70: -12.5 | C70: 260.65 | D70: -12.55 | E70: 207.73 | F70: 1.558103133 | G70: 0.4434691413 | H70: 0.0020773 | I70: -6.176686305 | J70: -2.682500779 | L70: -31.5 | M70: 241.65 | N70: 0.4268482513 | O70: -0.8513267122 | P70: -0.3697264934 | R70: 244.65 | S70: 1.580805167 | T70: 15808.05167 | U70: 4.198878347
B71: -12 | C71: =B71+273.15 -> 261.15 | D71: =C71-273.2 -> -12.05 | E71: 217.32 | F71: =E71*0.0075006168270417 -> 1.630034049 | G71: =LN(F71) -> 0.4886009035 | H71: =E71*0.00001 -> 0.0021732 | I71: =LN(H71) -> -6.131554543 | J71: =LOG(H71) -> -2.662900304 | L71: -32 | M71: 241.15 | N71: 0.4084604654 | O71: -0.8953601493 | P71: -0.3888499722 | R71: 244.15 | S71: 1.57829158 | T71: 15782.9158 | U71: 4.19818724
B72: -11.5 | C72: 261.65 | D72: -11.55 | E72: 227.32 | F72: 1.705040217 | G72: 0.5335886982 | H72: 0.0022732 | I72: -6.086566749 | J72: -2.643362353 | L72: -32.5 | M72: =L72+273.15 -> 240.65 | N72: =EXP(20.386-(5132/M72)) -> 0.3907932765 | O72: =LN(N72) -> -0.9395765635 | P72: =LOG(N72) -> -0.4080529168 | R72: 243.65 | S72: 1.575788266 | T72: 15757.88266 | U72: 4.197497862
B73: -11 | C73: 262.15 | D73: -11.05 | E73: 237.74 | F73: 1.783196644 | G73: 0.5784076213 | H73: 0.0023774 | I73: -6.041747825 | J73: -2.623897742 | L73: -33 | M73: 240.15 | N73: 0.3738214142 | O73: -0.9839770976 | P73: -0.4273358238 | R73: 243.15 | S73: 1.573295206 | T73: 15732.95206 | U73: 4.196810219
B74: -10.5 | C74: 262.65 | D74: -10.55 | E74: 248.59 | F74: 1.864578337 | G74: 0.6230349348 | H74: 0.0024859 | I74: -5.997120512 | J74: -2.604516346 | L74: -33.5 | M74: 239.65 | N74: 0.3575203826 | O74: -1.028562904 | P74: -0.4466991936 | R74: 242.65 | S74: 1.570812377 | T74: 15708.12377 | U74: 4.196124315
B75: -10 | C75: 263.15 | D75: -10.05 | E75: 259.9 | F75: 1.949410313 | G75: 0.6675269234 | H75: 0.002599 | I75: -5.952628523 | J75: -2.58519372 | L75: -34 | M75: 239.15 | N75: 0.3418664397 | O75: -1.073335145 | P75: -0.4661435308 | R75: 242.15 | S75: 1.56833976 | T75: 15683.3976 | U75: 4.195440153
B76: -9.5 | C76: 263.65 | D76: -9.55 | E76: 271.68 | F76: 2.03776758 | G76: 0.7118548849 | H76: 0.0027168 | I76: -5.908300562 | J76: -2.565942331 | L76: -34.5 | M76: 238.65 | N76: 0.3268365786 | O76: -1.118294993 | P76: -0.4856693445 | R76: 241.65 | S76: 1.565877333 | T76: 15658.77333 | U76: 4.194757738
B77: -9 | C77: 264.15 | D77: -9.05 | E77: 283.94 | F77: 2.129725142 | G77: 0.75599293 | H77: 0.0028394 | I77: -5.864162517 | J77: -2.546773422 | L77: -35 | M77: 238.15 | N77: 0.3124085077 | O77: -1.163443628 | P77: -0.5052771476 | R77: 241.15 | S77: 1.563425075 | T77: 15634.25075 | U77: 4.194077073
B78: -8.5 | C78: 264.65 | D78: -8.55 | E78: 296.7 | F78: 2.225433013 | G78: 0.7999515091 | H78: 0.002967 | I78: -5.820203938 | J78: -2.527682454 | L78: -35.5 | M78: 237.65 | N78: 0.2985606325 | O78: -1.208782243 | P78: -0.5249674579 | R78: 240.65 | S78: =(2.17+1.253*(R78/354.8)^3-1) -> 1.560982965 | T78: =S78*10000 -> 15609.82965 | U78: =LOG(T78) -> 4.193398164
B79: -8 | C79: 265.15 | D79: -8.05 | E79: 309.98 | F79: 2.325041204 | G79: 0.8437377611 | H79: 0.0030998 | I79: -5.776417686 | J79: -2.508666326 | L79: -36 | M79: 237.15 | N79: 0.2852720368 | O79: -1.254312039 | P79: -0.544740797 | R79: 240.15 | S79: 1.558550982 | T79: 15585.50982 | U79: 4.192721013
B80: -7.5 | C80: 265.65 | D80: -7.55 | E80: 323.8 | F80: 2.428699729 | G80: 0.887356023 | H80: 0.003238 | I80: -5.732799424 | J80: -2.489723156 | L80: -36.5 | M80: 236.65 | N80: 0.272522465 | O80: -1.300034228 | P80: -0.5645976914 | R80: 239.65 | S80: 1.556129104 | T80: 15561.29104 | U80: 4.192045625
B81: -7 | C81: 266.15 | D81: -7.05 | E81: 338.19 | F81: 2.536633605 | G81: 0.9308378495 | H81: 0.0033819 | I81: -5.689317597 | J81: -2.470839238 | L81: -37 | M81: 236.15 | N81: 0.2602923044 | O81: -1.345950032 | P81: -0.5845386717 | R81: 239.15 | S81: 1.553717312 | T81: 15537.17312 | U81: 4.191372005
B82: -6.5 | C82: 266.65 | D82: -6.55 | E82: 353.16 | F82: 2.648917839 | G82: 0.9741511938 | H82: 0.0035316 | I82: -5.646004253 | J82: -2.452028492 | L82: -37.5 | M82: 235.65 | N82: 0.2485625678 | O82: -1.392060683 | P82: -0.6045642732 | R82: 238.65 | S82: 1.551315583 | T82: 15513.15583 | U82: 4.190700155
B83: -6 | C83: 267.15 | D83: -6.05 | E83: 368.73 | F83: 2.765702443 | G83: 1.017294651 | H83: 0.0036873 | I83: -5.602860796 | J83: -2.433291527 | L83: -38 | M83: 235.15 | N83: 0.2373148769 | O83: -1.438367425 | P83: -0.6246750356 | R83: 238.15 | S83: 1.548923897 | T83: 15489.23897 | U83: 4.19003008
B84: -5.5 | C84: 267.65 | D84: -5.55 | E84: 384.92 | F84: 2.887137429 | G84: 1.060265502 | H84: 0.0038492 | I84: -5.559889944 | J84: -2.414629523 | L84: -38.5 | M84: 234.65 | N84: 0.2265314457 | O84: -1.484871511 | P84: -0.6448715035 | R84: 237.65 | S84: 1.546542233 | T84: 15465.42233 | U84: 4.189361784
B85: -5 | C85: 268.15 | D85: -5.05 | E85: 401.76 | F85: 3.013447816 | G85: 1.103084877 | H85: 0.0040176 | I85: -5.51707057 | J85: -2.396033305 | L85: -39 | M85: 234.15 | N85: 0.216195064 | O85: -1.531574205 | P85: -0.6651542257 | R85: 237.15 | S85: 1.544170569 | T85: 15441.70569 | U85: 4.188695271
B86: -4.5 | C86: 268.65 | D86: -4.55 | E86: 419.27 | F86: 3.144783617 | G86: 1.145745086 | H86: 0.0041927 | I86: -5.474410361 | J86: -2.377506212 | L86: -39.5 | M86: 233.65 | N86: 0.2062890824 | O86: -1.578476782 | P86: -0.685523756 | R86: 236.65 | S86: 1.541808885 | T86: 15418.08885 | U86: 4.188030544
B87: -4 | C87: 269.15 | D87: -4.05 | E87: 437.47 | F87: 3.281294843 | G87: 1.188238114 | H87: 0.0043747 | I87: -5.431917333 | J87: -2.359051724 | L87: -40 | M87: 233.15 | N87: 0.1967973957 | O87: -1.625580528 | P87: -0.705980653 | R87: 236.15 | S87: 1.53945716 | T87: 15394.5716 | U87: 4.187367608
B88: -3.5 | C88: 269.65 | D88: -3.55 | E88: 456.39 | F88: 3.423206514 | G88: 1.230577689 | H88: 0.0045639 | I88: -5.389577758 | J88: -2.34066388 | R88: 235.65 | S88: 1.537115372 | T88: 15371.15372 | U88: 4.186706466
B89: -3 | C89: 270.15 | D89: -3.05 | E89: 476.06 | F89: 3.570743647 | G89: 1.272773878 | H89: 0.0047606 | I89: -5.347381568 | J89: -2.322338308 | R89: 235.15 | S89: 1.534783501 | T89: 15347.83501 | U89: 4.186047122
B90: -2.5 | C90: 270.65 | D90: -2.55 | E90: 496.49 | F90: 3.723981248 | G90: 1.314793324 | H90: 0.0049649 | I90: -5.305362123 | J90: -2.304089494 | R90: 234.65 | S90: 1.532461525 | T90: 15324.61525 | U90: 4.18538958
B91: -2 | C91: 271.15 | D91: -2.05 | E91: 517.72 | F91: 3.883219344 | G91: 1.356664537 | H91: 0.0051772 | I91: -5.263490909 | J91: -2.285905057 | R91: 234.15 | S91: 1.530149423 | T91: 15301.49423 | U91: 4.184733843
B92: -1.5 | C92: 271.65 | D92: -1.55 | E92: 539.77 | F92: 4.048607945 | G92: 1.398373105 | H92: 0.0053977 | I92: -5.221782342 | J92: -2.267791257 | R92: 233.65 | S92: 1.527847175 | T92: 15278.47175 | U92: 4.184079916
B93: -1 | C93: 272.15 | D93: -1.05 | E93: 562.67 | F93: 4.22037207 | G93: 1.439923292 | H93: 0.0056267 | I93: -5.180232154 | J93: -2.24974624 | R93: 233.15 | S93: 1.52555476 | T93: 15255.5476 | U93: 4.183427801
B94: -0.5 | C94: 272.65 | D94: -0.55 | E94: 586.45 | F94: 4.398736738 | G94: 1.481317395 | H94: 0.0058645 | I94: -5.138838052 | J94: -2.231769009 | R94: 228.15 | S94: 1.503166753 | T94: 15031.66753 | U94: 4.177007162
B95: 0 | C95: 273.15 | D95: -0.05 | E95: 6.1115 | F95: =E95*0.75006168270417 -> 4.584001974 | G95: 1.52257241 | H95: =E95*0.001 -> 0.0061115 | I95: -5.097583037 | J95: -2.213852184 | R95: 223.15 | S95: 1.481738837 | T95: 14817.38837 | U95: 4.170771664
B96: 0.01 | C96: =B96+273.15 -> 273.16 | D96: =C96-273.2 -> -0.04 | E96: 6.11657 | F96: =E96*0.75006168270417 -> 4.587804787 | G96: =LN(F96) -> 1.52340165 | H96: =E96*0.001 -> 0.00611657 | I96: =LN(H96) -> -5.096753797 | J96: =LOG(H96) -> -2.21349205 | R96: 218.15 | S96: 1.46124997 | T96: 14612.4997 | U96: 4.164724515
B97: 1 | C97: 274.15 | D97: 0.95 | E97: 6.5709 | F97: 4.928580311 | G97: 1.595050977 | H97: 0.0065709 | I97: -5.02510447 | J97: -2.182375142 | R97: 213.15 | S97: 1.441679112 | T97: 14416.79112 | U97: 4.158868606
B98: 2 | C98: 275.15 | D98: 1.95 | E98: 7.0599 | F98: 5.295360474 | G98: 1.666831055 | H98: 0.0070599 | I98: -4.953324392 | J98: -2.15120145 | R98: 208.15 | S98: 1.423005221 | T98: 14230.05221 | U98: 4.153206493
B99: 3 | C99: 276.15 | D99: 2.95 | E99: 7.5808 | F99: 5.686067604 | G99: 1.738018903 | H99: 0.0075808 | I99: -4.882136544 | J99: -2.120284961 | R99: 203.15 | S99: 1.405207257 | T99: 14052.07257 | U99: 4.147740384
B100: 4 | C100: 277.15 | D100: 3.95 | E100: 8.1355 | F100: 6.10212682 | G100: 1.808637369 | H100: 0.0081355 | I100: -4.811518077 | J100: -2.089615751 | R100: 198.15 | S100: 1.38826418 | T100: 13882.6418 | U100: 4.142472118
B101: 5 | C101: 278.15 | D101: 4.95 | E101: 8.7258 | F101: 6.544888231 | G101: 1.878684322 | H101: 0.0087258 | I101: -4.741471125 | J101: -2.059194745 | R101: 193.15 | S101: 1.372154948 | T101: 13721.54948 | U101: 4.137403156
B102: 6 | C102: 279.15 | D102: 5.95 | E102: 9.3536 | F102: 7.015776955 | G102: 1.948161464 | H102: 0.0093536 | I102: -4.671993983 | J102: -2.029021206
B103: 7 | C103: 280.15 | D103: 6.95 | E103: 10.021 | F103: 7.516368122 | G103: 2.017083059 | H103: 0.010021 | I103: -4.603072388 | J103: -1.999088938
B104: 8 | C104: 281.15 | D104: 7.95 | E104: 10.73 | F104: 8.048161855 | G104: 2.085443724 | H104: 0.01073 | I104: -4.534711722 | J104: -1.969400278
B105: 9 | C105: 282.15 | D105: 8.95 | E105: 11.483 | F105: 8.612958302 | G105: 2.153267849 | H105: 0.011483 | I105: -4.466887598 | J105: -1.939944635
B106: 10 | C106: 283.15 | D106: 9.95 | E106: 12.282 | F106: 9.212257587 | G106: 2.220534944 | H106: 0.012282 | I106: -4.399620503 | J106: -1.910730907
B107: 11 | C107: 284.15 | D107: 10.95 | E107: 13.13 | F107: 9.848309894 | G107: 2.287299856 | H107: 0.01313 | I107: -4.332855591 | J107: -1.881735274
B108: 12 | C108: 285.15 | D108: 11.95 | E108: 14.028 | F108: 10.52186528 | G108: 2.3534555 | H108: 0.014028 | I108: -4.266699947 | J108: -1.853004243
B109: 13 | C109: 286.15 | D109: 12.95 | E109: 14.981 | F109: 11.23667407 | G109: 2.419182899 | H109: 0.014981 | I109: -4.200972547 | J109: -1.824459196
B110: 14 | C110: 287.15 | D110: 13.95 | E110: 15.99 | F110: 11.99348631 | G110: 2.484363695 | H110: 0.01599 | I110: -4.135791752 | J110: -1.796151536
B111: 15 | C111: 288.15 | D111: 14.95 | E111: 17.058 | F111: 12.79455218 | G111: 2.54901947 | H111: 0.017058 | I111: -4.071135977 | J111: -1.76807189
B112: 16 | C112: 289.15 | D112: 15.95 | E112: 18.188 | F112: 13.64212189 | G112: 2.613162204 | H112: 0.018188 | I112: -4.006993243 | J112: -1.740215054
B113: 17 | C113: 290.15 | D113: 16.95 | E113: 19.384 | F113: 14.53919566 | G113: 2.676848151 | H113: 0.019384 | I113: -3.943307295 | J113: -1.712556599
B114: 18 | C114: 291.15 | D114: 17.95 | E114: 20.647 | F114: 15.48652356 | G114: 2.739970198 | H114: 0.020647 | I114: -3.880185249 | J114: -1.685143042
B115: 19 | C115: 292.15 | D115: 18.95 | E115: 21.983 | F115: 16.48860597 | G115: 2.802669595 | H115: 0.021983 | I115: -3.817485852 | J115: -1.65791304
B116: 20 | C116: 293.15 | D116: 19.95 | E116: 23.393 | F116: 17.54619294 | G116: 2.864837 | H116: 0.023393 | I116: -3.755318447 | J116: -1.630914079
B117: 21 | C117: 294.15 | D117: 20.95 | E117: 24.882 | F117: 18.66303479 | G117: 2.926544818 | H117: 0.024882 | I117: -3.693610628 | J117: -1.604114714
B118: 22 | C118: 295.15 | D118: 21.95 | E118: 26.453 | F118: 19.84138169 | G118: 2.987769741 | H118: 0.026453 | I118: -3.632385706 | J118: -1.577525068
B119: 23 | C119: 296.15 | D119: 22.95 | E119: 28.111 | F119: 21.08498396 | G119: 3.048561127 | H119: 0.028111 | I119: -3.57159432 | J119: -1.551123705
B120: 24 | C120: 297.15 | D120: 23.95 | E120: 29.858 | F120: 22.39534172 | G120: 3.108852978 | H120: 0.029858 | I120: -3.511302468 | J120: -1.524939286
B121: 25 | C121: 298.15 | D121: 24.95 | E121: 31.699 | F121: 23.77620528 | G121: 3.168685302 | H121: 0.031699 | I121: -3.451470144 | J121: -1.498954438
B122: 26 | C122: 299.15 | D122: 25.95 | E122: 33.639 | F122: 25.23132494 | G122: 3.228086276 | H122: 0.033639 | I122: -3.392069171 | J122: -1.473156923
B123: 27 | C123: 300.15 | D123: 26.95 | E123: 35.681 | F123: 26.7629509 | G123: 3.287018502 | H123: 0.035681 | I123: -3.333136945 | J123: -1.447562983
B124: 28 | C124: 301.15 | D124: 27.95 | E124: 37.831 | F124: 28.37558352 | G124: 3.34552904 | H124: 0.037831 | I124: -3.274626407 | J124: -1.422152179
B125: 29 | C125: 302.15 | D125: 28.95 | E125: 40.092 | F125: 30.07147298 | G125: 3.403576981 | H125: 0.040092 | I125: -3.216578466 | J125: -1.396942278
B126: 30 | C126: 303.15 | D126: 29.95 | E126: 42.47 | F126: 31.85511966 | G126: 3.461198112 | H126: 0.04247 | I126: -3.158957335 | J126: -1.371917739
B127: 31 | C127: 304.15 | D127: 30.95 | E127: 44.969 | F127: 33.72952381 | G127: 3.518373531 | H127: 0.044969 | I127: -3.101781915 | J127: -1.34708677
B128: 32 | C128: 305.15 | D128: 31.95 | E128: 47.596 | F128: 35.69993585 | G128: 3.575148892 | H128: 0.047596 | I128: -3.045006555 | J128: -1.322429544
B129: 33 | C129: 306.15 | D129: 32.95 | E129: 50.251 | F129: 37.69134962 | G129: 3.629430615 | H129: 0.050251 | I129: -2.990724832 | J129: -1.298855291
B130: 34 | C130: 307.15 | D130: 33.95 | E130: 53.251 | F130: 39.94153467 | G130: 3.687416752 | H130: 0.053251 | I130: -2.932738695 | J130: -1.273672232
B131: 35 | C131: 308.15 | D131: 34.95 | E131: 56.29 | F131: 42.22097212 | G131: 3.742917067 | H131: 0.05629 | I131: -2.87723838 | J131: -1.249568751
B132: 36 | C132: 309.15 | D132: 35.95 | E132: 59.497 | F132: 44.62641994 | G132: 3.798326059 | H132: 0.059497 | I132: -2.821829388 | J132: -1.225504932
B133: 37 | C133: 310.15 | D133: 36.95 | E133: 62.823 | F133: 47.12112509 | G133: 3.852721416 | H133: 0.062823 | I133: -2.767434031 | J133: -1.201881328
B134: 38 | C134: 311.15 | D134: 37.95 | E134: 66.328 | F134: 49.75009129 | G134: 3.907012299 | H134: 0.066328 | I134: -2.713143148 | J134: -1.178303098
B135: 39 | C135: 312.15 | D135: 38.95 | E135: 70.002 | F135: 52.50581791 | G135: 3.960923981 | H135: 0.070002 | I135: -2.659231466 | J135: -1.154889552
B136: 40 | C136: 313.15 | D136: 39.95 | E136: 73.849 | F136: 55.39130521 | G136: 4.014422636 | H136: 0.073849 | I136: -2.605732811 | J136: -1.131655381
B137: 41 | C137: 314.15 | D137: 40.95 | E137: 77.878 | F137: 58.41330373 | G137: 4.067543667 | H137: 0.077878 | I137: -2.552611779 | J137: -1.10858521
B138: 42 | C138: 315.15 | D138: 41.95 | E138: 82.096 | F138: 61.5770639 | G138: 4.120289462 | H138: 0.082096 | I138: -2.499865985 | J138: -1.085678003
B139: 43 | C139: 316.15 | D139: 42.95 | E139: 86.508 | F139: 64.88633605 | G139: 4.172637063 | H139: 0.086508 | I139: -2.447518384 | J139: -1.062943728
B140: 44 | C140: 317.15 | D140: 43.95 | E140: 91.124 | F140: 68.34862077 | G140: 4.224621384 | H140: 0.091124 | I140: -2.395534063 | J140: -1.040367225
B141: 45 | C141: 318.15 | D141: 44.95 | E141: 95.95 | F141: 71.96841846 | G141: 4.27622739 | H141: 0.09595 | I141: -2.343928057 | J141: -1.017955021
B142: 46 | C142: 319.15 | D142: 45.95 | E142: 100.99 | F142: 75.74872934 | G142: 4.32742167 | H142: 0.10099 | I142: -2.292733777 | J142: -0.9957216278
B143: 47 | C143: 320.15 | D143: 46.95 | E143: 106.27 | F143: 79.70905502 | G143: 4.378383193 | H143: 0.10627 | I143: -2.241772254 | J143: -0.9735893194
B144: 48 | C144: 321.15 | D144: 47.95 | E144: 111.77 | F144: 83.83439428 | G144: 4.428843356 | H144: 0.11177 | I144: -2.191312091 | J144: -0.9516747491
B145: 49 | C145: 322.15 | D145: 48.95 | E145: 117.52 | F145: 88.14724895 | G145: 4.4790087 | H145: 0.11752 | I145: -2.141146747 | J145: -0.9298882172
B146: 50 | C146: 323.15 | D146: 49.95 | E146: 123.52 | F146: 92.64761905 | G146: 4.528803254 | H146: 0.12352 | I146: -2.091352193 | J146: -0.908262717
B147: 51 | C147: 324.15 | D147: 50.95 | E147: 129.78 | F147: 97.34300518 | G147: 4.578240877 | H147: 0.12978 | I147: -2.04191457 | J147: -0.8867922302
B148: 52 | C148: 325.15 | D148: 51.95 | E148: 136.31 | F148: 102.240908 | G148: 4.627331871 | H148: 0.13631 | I148: -1.992823575 | J148: -0.8654722822
B149: 53 | C149: 326.15 | D149: 52.95 | E149: 143.12 | F149: 107.348828 | G149: 4.676083607 | H149: 0.14312 | I149: -1.94407184 | J149: -0.8442996724
B150: 54 | C150: 327.15 | D150: 53.95 | E150: 150.22 | F150: 112.674266 | G150: 4.724501054 | H150: 0.15022 | I150: -1.895654393 | J150: -0.8232722424
B151: 55 | C151: 328.15 | D151: 54.95 | E151: 157.62 | F151: 118.2247224 | G151: 4.772587241 | H151: 0.15762 | I151: -1.847568206 | J151: -0.8023886768
B152: 56 | C152: 329.15 | D152: 55.95 | E152: 165.33 | F152: 124.007698 | G152: 4.820343644 | H152: 0.16533 | I152: -1.799811802 | J152: -0.7816483343
B153: 57 | C153: 330.15 | D153: 56.95 | E153: 173.36 | F153: 130.0306933 | G153: 4.867770525 | H153: 0.17336 | I153: -1.752384922 | J153: -0.7610511017
B154: 58 | C154: 331.15 | D154: 57.95 | E154: 181.71 | F154: 136.2937084 | G154: 4.914812177 | H154: 0.18171 | I154: -1.705343269 | J154: -0.7406211716
B155: 59 | C155: 332.15 | D155: 58.95 | E155: 190.41 | F155: 142.819245 | G155: 4.96157981 | H155: 0.19041 | I155: -1.658575637 | J155: -0.720310247
B156: 60 | C156: 333.15 | D156: 59.95 | E156: 199.46 | F156: 149.6073032 | G156: 5.008013883 | H156: 0.19946 | I156: -1.612141564 | J156: -0.7001441853
B157: 61 | C157: 334.15 | D157: 60.95 | E157: 208.88 | F157: 156.6728843 | G157: 5.054160092 | H157: 0.20888 | I157: -1.565995355 | J157: -0.6801031412
B158: 62 | C158: 335.15 | D158: 61.95 | E158: 218.67 | F158: 164.0159882 | G158: 5.099963912 | H158: 0.21867 | I158: -1.520191535 | J158: -0.6602107951
B159: 63 | C159: 336.15 | D159: 62.95 | E159: 228.85 | F159: 171.6516161 | G159: 5.145466935 | H159: 0.22885 | I159: -1.474688512 | J159: -0.6404490832
B160: 64 | C160: =B160+273.15 -> 337.15 | D160: =C160-273.2 -> 63.95 | E160: 239.43 | F160: =E160*0.75006168270417 -> 179.5872687 | G160: =LN(F160) -> 5.190661266 | H160: =E160*0.001 -> 0.23943 | I160: =LN(H160) -> -1.42949418 | J160: =LOG(H160) -> -0.6208214345
B161: 65 | C161: 338.15 | D161: 64.95 | E161: 250.42 | F161: 187.8304466 | G161: 5.235539676 | H161: 0.25042 | I161: -1.384615771 | J161: -0.6013309888
B162: 66 | C162: 339.15 | D162: 65.95 | E162: 261.83 | F162: 196.3886504 | G162: 5.280095606 | H162: 0.26183 | I162: -1.340059841 | J162: -0.5819805943
B163: 67 | C163: 340.15 | D163: 66.95 | E163: 273.69 | F163: 205.2843819 | G163: 5.324396247 | H163: 0.27369 | I163: -1.2957592 | J163: -0.5627410704
B164: 68 | C164: 341.15 | D164: 67.95 | E164: 285.99 | F164: 214.5101406 | G164: 5.368357013 | H164: 0.28599 | I164: -1.251798434 | J164: -0.5436491523
B165: 69 | C165: 342.15 | D165: 68.95 | E165: 298.76 | F165: 224.0884283 | G165: 5.412040743 | H165: 0.29876 | I165: -1.208114703 | J165: -0.5246775492
B166: 70 | C166: 343.15 | D166: 69.95 | E166: 312.01 | F166: 234.0267456 | G166: 5.455435406 | H166: 0.31201 | I166: -1.16472004 | J166: -0.5058314865
B167: 71 | C167: 344.15 | D167: 70.95 | E167: 325.75 | F167: 244.3325931 | G167: 5.498530384 | H167: 0.32575 | I167: -1.121625063 | J167: -0.4871155756
B168: 72 | C168: 345.15 | D168: 71.95 | E168: 340 | F168: 255.0209721 | G168: 5.541345785 | H168: 0.34 | I168: -1.078809661 | J168: -0.468521083
B169: 73 | C169: 346.15 | D169: 72.95 | E169: 354.78 | F169: 266.1068838 | G169: 5.583898047 | H169: 0.35478 | I169: -1.0362574 | J169: -0.4500408706
B170: 74 | C170: 347.15 | D170: 73.95 | E170: 370.09 | F170: 277.5903282 | G170: 5.626146387 | H170: 0.37009 | I170: -0.9940090597 | J170: -0.4316926496
B171: 75 | C171: 348.15 | D171: 74.95 | E171: 385.95 | F171: 289.4863064 | G171: 5.668107995 | H171: 0.38595 | I171: -0.9520474516 | J171: -0.4134689547
B172: 76 | C172: 349.15 | D172: 75.95 | E172: 402.39 | F172: 301.8173205 | G172: 5.709821935 | H172: 0.40239 | I172: -0.9103335114 | J172: -0.3953528207
B173: 77 | C173: 350.15 | D173: 76.95 | E173: 419.41 | F173: 314.5833703 | G173: 5.75124913 | H173: 0.41941 | I173: -0.8689063172 | J173: -0.3773612189
B174: 78 | C174: 351.15 | D174: 77.95 | E174: 437.03 | F174: 327.7994572 | G174: 5.79240201 | H174: 0.43703 | I174: -0.8277534364 | J174: -0.3594887498
B175: 79 | C175: 352.15 | D175: 78.95 | E175: 455.27 | F175: 341.4805823 | G175: 5.833290817 | H175: 0.45527 | I175: -0.7868646294 | J175: -0.3417309666
B176: 80 | C176: 353.15 | D176: 79.95 | E176: 474.14 | F176: 355.6342462 | G176: 5.873902805 | H176: 0.47414 | I176: -0.7462526422 | J176: -0.3240934046
B177: 81 | C177: 354.15 | D177: 80.95 | E177: 493.67 | F177: 370.2829509 | G177: 5.914267446 | H177: 0.49367 | I177: -0.7058880012 | J177: -0.3065632638
B178: 82 | C178: 355.15 | D178: 81.95 | E178: 513.87 | F178: 385.4341969 | G178: 5.954370483 | H178: 0.51387 | I178: -0.6657849638 | J178: -0.2891467359
B179: 83 | C179: 356.15 | D179: 82.95 | E179: 534.76 | F179: 401.1029854 | G179: 5.994218216 | H179: 0.53476 | I179: -0.6259372309 | J179: -0.2718410854
B180: 84 | C180: 357.15 | D180: 83.95 | E180: 556.35 | F180: 417.2968172 | G180: 6.03379776 | H180: 0.55635 | I180: -0.5863576864 | J180: -0.2546519076
B181: 85 | C181: 358.15 | D181: 84.95 | E181: 578.67 | F181: 434.0381939 | G181: 6.073132535 | H181: 0.57867 | I181: -0.5470229121 | J181: -0.2375690322
B182: 86 | C182: 359.15 | D182: 85.95 | E182: 601.73 | F182: 451.3346163 | G182: 6.112209007 | H182: 0.60173 | I182: -0.5079464393 | J182: -0.2205983357
B183: 87 | C183: 360.15 | D183: 86.95 | E183: 625.56 | F183: 469.2085862 | G183: 6.151047416 | H183: 0.62556 | I183: -0.4691080304 | J183: -0.203731029
B184: 88 | C184: 361.15 | D184: 87.95 | E184: 650.17 | F184: 487.6676042 | G184: 6.189634035 | H184: 0.65017 | I184: -0.4305214118 | J184: -0.1869730735
B185: 89 | C185: 362.15 | D185: 88.95 | E185: 675.58 | F185: 506.7266716 | G185: 6.227971749 | H185: 0.67558 | I185: -0.3921836978 | J185: -0.1703232158
B186: 90 | C186: 363.15 | D186: 89.95 | E186: 701.82 | F186: 526.4082902 | G186: 6.266077129 | H186: 0.70182 | I186: -0.3540783181 | J186: -0.1537742597
B187: 91 | C187: 364.15 | D187: 90.95 | E187: 728.9 | F187: 546.7199605 | G187: 6.303936716 | H187: 0.7289 | I187: -0.3162187306 | J187: -0.1373320498
B188: 92 | C188: 365.15 | D188: 91.95 | E188: 756.84 | F188: 567.6766839 | G188: 6.341552038 | H188: 0.75684 | I188: -0.2786034085 | J188: -0.120995923
B189: 93 | C189: 366.15 | D189: 92.95 | E189: 785.68 | F189: 589.3084629 | G189: 6.378949753 | H189: 0.78568 | I189: -0.2412056941 | J189: -0.104754302
B190: 94 | C190: 367.15 | D190: 93.95 | E190: 815.41 | F190: 611.6077967 | G190: 6.416091222 | H190: 0.81541 | I190: -0.2040642248 | J190: -0.08862396676
B191: 95 | C191: 368.15 | D191: 94.95 | E191: 846.08 | F191: 634.6121885 | G191: 6.453014086 | H191: 0.84608 | I191: -0.1671413612 | J191: -0.07258857087
B192: 96 | C192: 369.15 | D192: 95.95 | E192: 877.71 | F192: 658.3366395 | G192: 6.489716411 | H192: 0.87771 | I192: -0.130439036 | J192: -0.05664895357
B193: 97 | C193: 370.15 | D193: 96.95 | E193: 910.3 | F193: 682.7811498 | G193: 6.526174383 | H193: 0.9103 | I193: -0.09398106347 | J193: -0.04081545727
B194: 98 | C194: 371.15 | D194: 97.95 | E194: 943.9 | F194: 707.9832223 | G194: 6.562420396 | H194: 0.9439 | I194: -0.05773505065 | J194: -0.02507401391
B195: 99 | C195: 372.15 | D195: 98.95 | E195: 978.52 | F195: 733.9503578 | G195: 6.598441394 | H195: 0.97852 | I195: -0.02171405291 | J195: -0.009430293357
B196: 100 | C196: 373.15 | D196: 99.95 | E196: 1013.3 | F196: 760.0375031 | G196: 6.633367778 | H196: 1.0133 | I196: 0.01321233147 | J196: 0.005738042651
B197: 101 | C197: 374.15 | D197: 100.95 | E197: 1050 | F197: 787.5647668 | G197: 6.668945611 | H197: 1.05 | I197: 0.04879016417 | J197: 0.02118929907
B198: 102 | C198: 375.15 | D198: 101.95 | E198: 1087.7 | F198: 815.8420923 | G198: 6.704220822 | H198: 1.0877 | I198: 0.08406537512 | J198: 0.03650912853
B199: 103 | C199: 376.15 | D199: 102.95 | E199: 1126.7 | F199: 845.0944979 | G199: 6.739448453 | H199: 1.1267 | I199: 0.1192930062 | J199: 0.05180829432
B200: 104 | C200: 377.15 | D200: 103.95 | E200: 1166.7 | F200: 875.0969652 | G200: 6.774334698 | H200: 1.1667 | I200: 0.1541792508 | J200: 0.06695919787
B201: 105 | C201: 378.15 | D201: 104.95 | E201: 1208 | F201: 906.0745127 | G201: 6.809121546 | H201: 1.208 | I201: 0.1889660995 | J201: 0.08206693429
B202: 106 | C202: 379.15 | D202: 105.95 | E202: 1250.5 | F202: 937.9521342 | G202: 6.843698918 | H202: 1.2505 | I202: 0.2235434713 | J202: 0.09708369607
B203: 107 | C203: 380.15 | D203: 106.95 | E203: 1294 | F203: 970.5798174 | G203: 6.877893643 | H203: 1.294 | I203: 0.2577381961 | J203: 0.1119342763
... 34 more rows
